Cogmind - Beta 13 @@@ ROGUE MODE // 2024.07.08 @ 03:01:05 Player: Duduxx Result: Destroyed by G-47 Trooper with Particle Gun Performance ------------- Evolutions (0) 0 Regions Visited (1) 200 Robots Destroyed (12) 60 Value Destroyed (312) 312 Prototype IDs (3) 60 Alien Tech Used (0) 0 Bonus (0) 0 TOTAL SCORE: 632 Bonus ------- None Cogmind --------- Core Integrity 0/250 Matter 286/300 Energy 250/250 System Corruption 0% Temperature Warning (320) Movement Rolling (90) Location -10/Materials Parts ------- > --- POWER (1) -------- Ion Engine > --- PROPULSION (2) --- Wheel Compact Wheel > --- UTILITY (2) ------ Small Storage Unit Visual Processing Unit > --- WEAPON (2) ------- Medium Laser > --- INVENTORY (8) ---- Light Ion Engine Light Treads Light Treads Light Armor Plating Grenade Launcher Peak State ------------ > --- POWER ------------ Ion Engine > --- PROPULSION ------- Compact Wheel Compact Wheel > --- UTILITY ---------- Small Storage Unit Visual Processing Unit > --- WEAPON ----------- Small Laser Small Laser > --- INVENTORY -------- Light Ion Engine Light Treads Light Treads Wheel Medium Laser Light Assault Rifle Grenade Launcher [Rating: 8] Favorites ----------- Power Ion Engine Engine Ion Engine Propulsion Compact Wheel Wheel Compact Wheel Utility Small Storage Unit Storage Small Storage Unit Processor Visual Processing Unit Weapon Small Laser Energy Gun Small Laser Ballistic Gun Light Assault Rifle Build | -11 -10 ------- Run | Yrd Mat Slots Evolved . | . . Power . | . . Propulsion . | . . Utility . | . . Weapon . | . . Parts Attached 13 | 6 7 Power 2 | 1 1 Engine 2 | 1 1 Core . | . . Reactor . | . . Propulsion 5 | 2 3 Treads . | . . Leg . | . . Wheel 5 | 2 3 Hover . | . . Flight . | . . Utility 2 | 1 1 Device . | . . Storage 1 | 1 . Processor 1 | . 1 Hackware . | . . Protection . | . . Artifact . | . . Weapon 4 | 2 2 Energy Gun 3 | 2 1 Energy Cannon . | . . Ballistic Gun 1 | . 1 Ballistic Cannon . | . . Launcher . | . . Special Weapon . | . . Impact Weapon . | . . Slashing Weapon . | . . Piercing Weapon . | . . Special Melee Weapon . | . . Unidentified Prototypes . | . . Parts Lost 4 | . 4 Power 1 | . 1 Propulsion 1 | . 1 Utility . | . . Weapon 2 | . 2 Highest Loss Streak 3 | . 3 To Critical Strikes . | . . Average Slot Usage (%) 93 | . 93 Engine 14 | . 14 Wheel 28 | . 28 Storage 14 | . 14 Processor 8 | . 8 Energy Gun 25 | . 25 Ballistic Gun 2 | . 2 Naked Turns . | . . Heaviest Build 12 | 10 12 Greatest Support 32 | 26 32 Greatest Overweight (x) . | . . Average Overweight (x) . | . . Largest Inventory Capacity 8 | 8 8 Average Capacity 7 | 7 8 Most Carried 8 | 4 8 Average Carried 6 | 2 6 Final Capacity 8 | 8 8 Final Carried 5 | 4 5 Class Distribution -------------------- 100% | Mutant Dominant Class ---------------- Mutant | -10/Materials Resources | -11 -10 ----------- Run | Yrd Mat Matter Collected 291 | 198 93 Remotely . | . . Salvage Created 402 | . 402 Parts 21 | . 21 Haulers Intercepted 1 | . 1 Recyclers Shooed . | . . Parts Field Recycled . | . . Retrieved Matter . | . . Parts Self-Destructed . | . . Prevented . | . . Kills | -11 -10 ------- Run | Yrd Mat Combat Hostiles Destroyed 10 | . 10 Guns 10 | . 10 Classes Destroyed 4 | . 4 Hauler 1 | . 1 Watcher 1 | . 1 Swarmer 3 | . 3 Grunt 7 | . 7 Best Kill Streak 3 | . 3 Combat Bots Only 3 | . 3 Max Kills in Single Turn 1 | . 1 Gunslinging . | . . Exploded . | . . Melee . | . . Uniques/NPCs Destroyed . | . . Combat | -11 -10 -------- Run | Yrd Mat Hostile Shots Fired 74 | . 74 Missed 19 | . 19 Damage Taken 683 | . 683 Core 251 | . 251 Absorbed by Shields . | . . Core Remaining (%) 100 | 100 . Volleys Fired 63 | . 63 Largest 2 | . 2 Hottest 80 | . 80 Shots Fired 116 | . 116 Gun 116 | . 116 Cannon . | . . Launcher . | . . Special . | . . Kinetic 9 | . 9 Thermal 107 | . 107 Explosive . | . . Electromagnetic . | . . Robot Hit Streak 7 | . 7 Robot Miss Streak 4 | . 4 Penetration Max . | . . Secondary Targets 1 | . 1 Max Gunslinging Chain 1 | . 1 Shots Hit Robots 70 | . 70 Core Hits 26 | . 26 Critical Kills . | . . Critical Parts Destroyed . | . . Critical Strikes . | . . Melee Attacks . | . . Impact . | . . Slashing . | . . Piercing . | . . Sneak Attacks . | . . Combat Hostiles . | . . Follow-up Attacks . | . . Damage Inflicted 735 | . 735 Guns 705 | . 705 Cannons . | . . Explosions . | . . Melee . | . . Ramming 30 | . 30 Kinetic 47 | . 47 Thermal 658 | . 658 Explosive . | . . Electromagnetic . | . . Impact . | . . Slashing . | . . Piercing . | . . Highest Corruption . | . . Average Corruption . | . . Corruption Purged . | . . Corruption Blocked . | . . Overload Shots . | . . Overflow Damage . | . . Projectiles . | . . Explosions . | . . Melee . | . . Knockbacks . | . . Impact . | . . Kinetic . | . . Secondary . | . . Self-Inflicted Damage 13 | . 13 Shots . | . . Rammed 6 | . 6 Targets Rammed 6 | . 6 Kicked . | . . Crushed . | . . Highest Temperature 293 | . 293 Average Temperature 83 | . 83 Received Heat Transfer 366 | . 366 Effects 3 | . 3 Energy Bleed 1 | . 1 Interference 2 | . 2 Siege Activations . | . . Robots Corrupted . | . . Combat Hostiles . | . . Parts Fried . | . . Impact Corruptions . | . . Robots Melted . | . . Combat Hostiles . | . . Parts Melted 1 | . 1 Heat Transferred 1571 | . 1571 Parts Sabotaged . | . . Parts Stolen . | . . Parts Stripped . | . . Power Chain Reactions . | . . Alert | -11 -10 ------- Run | Yrd Mat Peak Influence 287 | . 287 Initial . | . . Average 133 | . 144 Maximum Alert Level 1 | . 1 Low Security (%) 72 | 100 69 Level 1 27 | . 30 Level 2 . | . . Level 3 . | . . Level 4 . | . . Level 5 . | . . High Security . | . . Max Security . | . . Squads Dispatched 2 | . 2 Investigation 1 | . 1 Extermination . | . . Reinforcement 1 | . 1 Assault . | . . Garrison . | . . Intercept . | . . Searches Triggered . | . . Construction Impeded . | . . Haulers Reinforced . | . . Active Scanning Responses . | . . Cargo Convoy Interrupts . | . . Stealth | -11 -10 --------- Run | Yrd Mat Distress Signals 1 | . 1 Communications Jammed . | . . Distress Signals . | . . Times Spotted 23 | . 23 Peak Tracking Total 4 | . 4 Tactical Retreats 1 | . 1 Traps | -11 -10 ------- Run | Yrd Mat Traps Triggered . | . . Indirectly . | . . Trap Hack Attempts . | . . Triggered . | . . Disarmed . | . . Reprogrammed . | . . Reused . | . . Traps Extracted . | . . Installed . | . . Triggered . | . . Machines | -11 -10 ---------- Run | Yrd Mat Machines Disabled . | . . Max in Single Turn . | . . Machines Repaired . | . . Machines Dismantled . | . . Machines Sabotaged . | . . Overloaded Fab Kills . | . . Hacking | -11 -10 --------- Run | Yrd Mat Machines Accessed 2 | . 2 Terminals 2 | . 2 Fabricators . | . . Repair Stations . | . . Recycling Units . | . . Scanalyzers . | . . Garrison Access . | . . Total Hacks 6 | . 6 Successful 2 | . 2 Failed 4 | . 4 Catastrophic . | . . Database Lockouts . | . . Manual . | . . Terminals 6 | . 6 Fabricators . | . . Repair Stations . | . . Recycling Units . | . . Scanalyzers . | . . Garrison Access . | . . Terminal Hacks 2 | . 2 Prototype ID Bank 2 | . 2 Fabricator Hacks . | . . Repair Station Hacks . | . . Recycling Unit Hacks . | . . Scanalyzer . | . . Garrison Access Hacks . | . . Unauthorized Hacks . | . . Terminals . | . . Fabricators . | . . Repair Stations . | . . Recycling Units . | . . Scanalyzers . | . . Garrison Access . | . . Data Cores Recovered . | . . Used . | . . Hacking Detections 1 | . 1 Full Trace Events 1 | . 1 Feedback Events . | . . Feedback Blocked . | . . Robot Schematics Acquired . | . . Robots Built . | . . Authchips . | . . Time . | . . Total Robot Build Rating . | . . Part Schematics Acquired . | . . Parts Built . | . . Authchips . | . . Time . | . . Total Part Build Rating . | . . Parts Repaired . | . . Time . | . . Parts Recycled . | . . Recycled Matter . | . . Retrieved Matter . | . . Retrieved Components . | . . Parts Scanalyzed . | . . Part Schematics Acquired . | . . Parts Damaged . | . . Bothacking | -11 -10 ------------ Run | Yrd Mat Used RIF Installer . | . . Robots Hacked . | . . Non-combat . | . . Combat . | . . Robot Hacks Applied . | . . Relay Couplers Released . | . . Fabnet Peak Effective % . | . . Robots Rewired . | . . Allies Hacked . | . . Hacks Repelled . | . . Allies | -11 -10 -------- Run | Yrd Mat Total Allies . | . . Largest Group . | . . Highest-Rated Group . | . . Highest-Rated Ally . | . . Total Orders . | . . Ally Attacks . | . . Total Damage . | . . Kills . | . . Allies Corrupted . | . . Allies Melted . | . . Intel | -11 -10 ------- Run | Yrd Mat Robot Analysis Total . | . . Derelict Logs Recovered . | . . Drone Launches . | . . Drone Recoveries . | . . Exploration | -11 -10 ------------- Run | Yrd Mat Turns Passed 715 | 58 657 Spaces Moved 518 | 53 465 Core 4 | 4 . Treads . | . . Legs . | . . Wheels 514 | 49 465 Hover . | . . Flight . | . . Fastest Speed 50 | 50 90 Average Speed 95 | 85 97 Slowest Speed 100 | 90 100 Overloaded Moves . | . . Propulsion Burnouts . | . . Robots Hopped . | . . Cave-ins Triggered . | . . Exploration Rate (%) 40 | 3 78 Regions Visited 1 Branch Regions . Pre-discovered Areas . | . . Known Exits Taken . | . . Unknown Exits Taken 1 | 1 . Scrap Searched . | . . Spaces Dug . | . . Terrain Destroyed . | . . Melee . | . . Projectile . | . . AOE . | . . Terrain Rammed . | . . Walls Destroyed . | . . Machines Disabled . | . . Actions | -11 -10 --------- Run | Yrd Mat Total 619 | 62 557 Wait 10 | . 10 Move 517 | 52 465 Hop . | . . Pick Up 9 | 4 5 Fast Attach 6 | 6 . Attach 5 | . 5 Detach . | . . Swap 2 | . 2 Drop 1 | . 1 Fire 63 | . 63 Melee . | . . Ram 6 | . 6 Kick . | . . Crush . | . . Escape Stasis . | . . Rewire . | . . Trap . | . . Miscellaneous . | . . Route ------- -11/Scrapyard -10/Materials (discovered 4 exits: [*Mat x3] / [*Min]) History --------- Turn | Location | Event 19 | -11/Scrapyard | Discovered new exit (range 16) 59 | -11/Scrapyard | Entered Materials 219 | -10/Materials | Discovered new exit (range 3) 317 | -10/Materials | Build established: Mutant 317 | -10/Materials | Discovered new exit (range 16) 442 | -10/Materials | Discovered new exit (range 11) 454 | -10/Materials | Discovered new exit (range 16) 659 | -10/Materials | Derelicts attacked the area 660 | -10/Materials | Core integrity fell below 50% 700 | -10/Materials | Core integrity fell below 20% 716 | -10/Materials | Destroyed by G-47 Trooper with Particle Gun Last Messages --------------- 00590_ Overheating: System interference. 00590_ Sml. Laser temporarily disabled. 00594_ Slammed into R-06 Scavenger. 00598_ Dropped Sml. Laser. 00659_ ALERT: Derelict incursion detected, dispatching patrols to target area. 00659_ Slammed into O-16 Technician. 00665_ Slammed into T-07 Excavator. 00666_ Acquired 2 matter. 00676_ A-02 Transporter destroyed. 00676_ K-01 Serf collects debris. 00684_ Com. Wheel destroyed. 00687_ Sml. Laser destroyed. 00692_ G-34 Mercenary destroyed. 00694_ R-06 Scavenger collects Assault Rifle. 00695_ Lgt. Assault Rifle destroyed. 00697_ K-01 Serf collects debris. 00698_ R-06 Scavenger collects Assault Rifle. 00700_ K-01 Serf collects debris. 00716_ Critical hit (Burn: +37). Map ----- +----------------------------------------------------+ | !#???# """ ""#?????# + #?????????? | | ##### "" Y"#?????# """ # ########?????? | | # # """ ""??????# """ # # """ ""?????? | | # # "" ######### """ + + """ ""?????? | | # # """ + + """ # # """ ""?????? | | *!! # + " # ##### """ # # #??? | | *!! # # + #???# # # #??? | | !!! # # # #???########## # #??? | | ##### ####### #???# ^ # #??? | | ???# #????# #???# ^^ # #??? | | #### [ #????# #???# """ ###########??? | | % T #????# #???# "T" # #??? | | #????# ###### # #??? | | #### #??# # # # + #??? | | ???#######??# / %+ # = # #??? | | ????????????### # +% % ###########??? | | ??????????????# # # ######+######????????? | | ????????####### # ## # ! #????????? | | ???????? #" ## # """ #????????? | | ???????? #T ## # "R """ #????????? | | ???????# #" ## # """ """ #????????? | | ???????? #### # ## # """ #????????? | | ???????? #??# ####### # #????????? | | ######## #??# ??????#%# #????????? | | #??# ####### ######+######????????? | | #??# @ *% #??????????? | | """ #??# k g < #??????????? | | """ "" #??# =[! #??????????? | | """ "" #??####+### %#######+####??????????? | | T" #??# # [#?????????????????????? | | "" #??# # *#?????????????????????? | | !! "" #??# "" # #?????????????????????? | | !! #??# Y" # #?????????????????????? | | ! #??# "" # #?????????????????????? | | ######## #??# #r #?????????????????????? | | ???????# #??######## #?????????????????????? | | ???????# #?????????# #?????????????????????? | | ???????# #?????????# #?##########??????????? | | ???????# #?????????# #?# #??????????? | | ?????### #?????????# #?#""" #??????????? | | ?????# ########### #?#""" #??????????? | | ###### ###""" #??????????? | | %+ T + #??????????? | | """" # ###""" #??????????? | | """" # ###+###########?#""" #??????????? | | """" ## ##???????????????#""" #??????????? | | """" ## #????????????????# ! #??????????? | | """" ## #????????????????#####+####??????????? | | """" ## #????????????????????????????????????? | | ??"" ## #????????????????????????????????????? | +----------------------------------------------------+ Best States ------------- Heat Dissipation 25 Energy Generation 10 Energy Capacity 250 Matter Stores 300 Matter Capacity 300 Sight Range 18 Terrain Scan Density 10 Evasion (%) 44 Item Schematics ----------------- None Robot Schematics ------------------ None Fabricated ------------ Nothing Alien Tech Used ----------------- None Achievements -------------- None Challenges ------------ None Game ------ Seed SegregatorStasisNetwork Manual? 0 Play Time 00:10:37 Cumulative 30.0 hours Start 2024.07.08 @ 02:55:35 End 2024.07.08 @ 03:01:05 Sessions 1 Manual Loads 0 Difficulty Rogue Special Mode None Game No. 74 Rogue 74 Adventurer 0 Explorer 0 Win Type - Total 0 Types 0/0/0/0/0/0/0/0/0 Lore% 23 Gallery% 29 Achievement% 21 Wizard Run 0 Options --------- Layout 1 ASCII 0 Keyboard 1 Movement Arrows Keybinds 0 Fullscreen 1 Font 24/Smallcaps Map View 50x35 Zoom Use 0% Tactical HUD 1 Map Filters NONE Filters NONE Steam 1 RUN: 7948df4c-eb1e-49d6-bd4e-a7dbf7d240f8